bitfinex-derivatives/quotes_SOLF0:USTF0_20241011
["timestamp","ask_amount","ask_price","bid_price","bid_amount"]
[1728617722425,3.5445,141.19,141.16,17.275]
[1728617722730,3.5445,141.18,141.17,5.42313546]
[1728617725227,0.12502,141.23,141.17,5.42106342]
[1728617725539,8.85502,141.23,141.18,5.42066627]
[1728617725736,8.85502,141.23,141.19,4.98]
[1728617726037,3.544,141.2,141.19,4.98]
[1728617732838,3.544,141.21,141.19,4.98]
[1728617733039,8.85502,141.23,141.19,4.98]
[1728617733348,8.73,141.22,141.19,4.98]
[1728617734548,3.544,141.2,141.19,4.98]
[1728617738346,12.274,141.2,141.19,4.98]
[1728617738751,8.73,141.2,141.14,1.3667]
[1728617738955,8.73,141.16,141.15,24.09929529]
[1728617739155,8.73,141.16,141.15,16.31927336]
[1728617739454,12.275,141.16,141.15,16.31927336]
[1728617739844,12.275,141.16,141.15,10.27708492]
[1728617740751,8.73,141.16,141.13,96.8633547]
[1728617740950,8.73,141.16,141.14,16.32493151]
[1728617741148,8.73,141.16,141.15,10.28067056]
[1728617742452,12.275,141.16,141.15,10.28067056]
[1728617743259,3.545,141.16,141.15,10.28067056]
[1728617744353,3.5454,141.15,141.13,96.8633547]
[1728617744550,3.5454,141.15,141.14,16.32054752]
[1728617747654,3.5454,141.15,141.14,4.86474446]
[1728617747846,3.5454,141.15,141.14,6.04576866]
[1728617748046,3.5454,141.15,141.14,16.32273431]
[1728617751057,3.5454,141.15,141.14,6.04576866]
[1728617751258,3.5454,141.15,141.14,16.32317175]
[1728617751660,3.5454,141.15,141.14,25.05317175]
[1728617753856,3.5452,141.16,141.14,25.05317175]
[1728617754058,3.5452,141.16,141.15,16.32317175]
[1728617757765,3.5452,141.16,141.15,4.86559845]
[1728617757961,3.5453,141.15,141.14,8.73]
[1728617758264,3.5453,141.15,141.14,32.74546358]
[1728617761467,3.5453,141.15,141.14,24.01546358]
[1728617762566,3.5453,141.15,141.14,16.22245422]
[1728617762761,3.546,141.12,141.11,5.10502]
[1728617762962,3.546,141.12,141.11,29.08358884]
[1728617763863,3.546,141.12,141.11,11.16500288]
[1728617764059,1.294,141.17,141.11,25.13693527]
[1728617764369,1.294,141.17,141.13,8.73]
[1728617764561,1.294,141.17,141.14,16.17874357]
[1728617764763,3.5454,141.15,141.13,8.73]
[1728617764968,3.5454,141.15,141.14,16.1756421]
[1728617766271,3.5454,141.15,141.14,23.99497278]
[1728617766764,3.5454,141.15,141.14,16.1756421]
[1728617766971,3.5454,141.15,141.14,10.11680203]
[1728617767171,3.5454,141.15,141.14,16.19060332]
[1728617767471,3.5449,141.17,141.14,41.26728792]
[1728617767658,3.5449,141.17,141.15,16.19060332]
[1728617767857,3.5449,141.17,141.14,17.2555]
[1728617768061,3.5449,141.17,141.15,16.21972881]
[1728617768265,3.5449,141.17,141.14,17.2555]
[1728617768569,3.5449,141.17,141.15,16.2196713]
[1728617768774,3.5449,141.17,141.14,17.2555]
[1728617768975,3.5446,141.18,141.15,16.22022877]
[1728617769270,8.73,141.19,141.14,13.71]
[1728617769472,8.73,141.19,141.15,16.2183164]
[1728617769673,8.73,141.19,141.14,13.71]
[1728617769674,3.5453,141.16,141.14,13.71]
[1728617769876,3.5453,141.16,141.15,16.21792057]
[1728617770463,3.5453,141.16,141.15,5.25462437]
[1728617770668,3.5453,141.16,141.15,16.21812532]
[1728617773670,3.5453,141.16,141.15,10.14335506]
[1728617773871,3.5453,141.16,141.14,13.71]
[1728617774074,3.5453,141.16,141.15,10.13855002]
[1728617774273,3.5453,141.16,141.15,16.21045205]
[1728617777278,3.5453,141.16,141.14,8.73]
[1728617777478,3.5453,141.16,141.15,16.20157479]
[1728617779082,3.5453,141.16,141.15,10.95236248]
[1728617780791,3.5453,141.16,141.14,8.73]
[1728617780990,3.5453,141.16,141.15,10.95229675]
[1728617784297,3.5453,141.16,141.15,10.95232549]
[1728617787598,3.5453,141.16,141.15,4.8837482]
[1728617787798,3.5453,141.16,141.14,12.2755]
[1728617787999,3.5453,141.16,141.15,6.06854291]
[1728617788188,3.5453,141.16,141.15,10.95226341]
[1728617789692,6.38421718,141.22,141.15,10.95226341]
[1728617789884,3.5441,141.2,141.17,12.2746]
[1728617790088,3.5441,141.2,141.18,8.73]
[1728617791695,0.12502,141.23,141.19,13.71]
[1728617791998,0.12502,141.23,141.21,8.73]
[1728617792192,0.12502,141.23,141.2,8.73]
[1728617792394,8.73,141.22,141.19,4.98]
[1728617792696,8.73,141.22,141.17,4.98]
[1728617793198,3.5442,141.18,141.17,4.98]
[1728617793591,3.5442,141.18,141.17,11.04721051]
[1728617794195,3.5442,141.18,141.17,21.27031782]
[1728617795592,3.5442,141.18,141.17,9.8631487]
[1728617795792,3.5442,141.18,141.17,21.27073299]
[1728617796493,0.12502,141.23,141.17,30.00073299]
[1728617796494,3.5441,141.19,141.17,30.00073299]
[1728617796696,3.5441,141.19,141.17,13.71]
[1728617796890,3.5441,141.19,141.18,5.33936928]
[1728617802300,3.5442,141.18,141.17,4.98]
[1728617802507,3.5442,141.18,141.17,21.26795322]
[1728617804197,3.5442,141.18,141.17,15.20109452]
[1728617806701,3.5442,141.18,141.17,10.22109452]
[1728617808896,3.5444,141.17,141.16,4.98]
[1728617809303,3.5444,141.17,141.16,16.39987855]
[1728617809509,3.5444,141.17,141.16,21.28836362]
[1728617811506,3.5444,141.17,141.16,30.01836362]
[1728617812304,3.5444,141.17,141.16,19.79070656]
[1728617812509,3.5444,141.17,141.16,30.03512096]
[1728617814304,3.5444,141.17,141.16,16.32512096]
[1728617815508,3.5444,141.17,141.16,24.15532388]
[1728617815810,3.5444,141.17,141.16,16.32512096]
[1728617818810,8.73,141.19,141.15,4.98]
[1728617819106,3.5447,141.16,141.15,4.98]
[1728617819311,3.5447,141.16,141.15,29.14785257]
[1728617821211,3.5447,141.16,141.15,23.06384773]
[1728617821411,3.5447,141.16,141.15,29.15046587]
[1728617823614,3.5447,141.16,141.15,24.17046587]
[1728617824014,3.5447,141.16,141.15,16.33660396]
[1728617824712,3.5447,141.16,141.15,15.15734536]
[1728617825014,3.5447,141.16,141.15,16.35890679]
[1728617825212,3.5447,141.16,141.15,24.21035283]
[1728617825922,3.5447,141.16,141.15,16.35890679]
[1728617826118,12.2747,141.16,141.15,16.35890679]
[1728617826414,12.2747,141.16,141.15,5.35382213]
[1728617827407,8.73,141.16,141.13,86.15269959]
[1728617827612,8.73,141.14,141.11,0.12502]
[1728617827814,8.73,141.14,141.12,24.17917086]
[1728617828012,8.73,141.14,141.13,4.90557701]
[1728617828013,12.2752,141.14,141.13,4.90557701]
[1728617828213,8.73,141.14,141.13,16.3297569]
[1728617829216,8.73,141.14,141.13,10.23423484]
[1728617829408,12.2752,141.14,141.13,10.23423484]
[1728617829810,12.2752,141.14,141.13,16.3326937]
[1728617830013,12.2752,141.14,141.13,10.2406767]
[1728617830211,12.2752,141.14,141.13,5.32880548]
[1728617831512,3.5457,141.12,141.11,0.12502]
[1728617831714,3.5457,141.12,141.11,11.56653627]
[1728617832009,3.5457,141.12,141.11,24.33978684]
[1728617834319,3.5457,141.12,141.11,24.33595287]
[1728617834618,3.5457,141.12,141.11,16.47932495]
[1728617834822,3.5457,141.12,141.11,6.22968867]
[1728617835011,3.5457,141.12,141.11,18.99453957]
[1728617835212,3.5457,141.12,141.11,16.47258955]
[1728617836322,3.5457,141.12,141.11,24.32732816]
[1728617838123,3.5457,141.12,141.11,16.47258955]
[1728617838325,3.5457,141.12,141.11,6.22968867]
[1728617838524,3.5457,141.12,141.11,16.4714087]
[1728617838725,3.5457,141.12,141.11,11.13868147]
[1728617841118,3.5457,141.12,141.11,18.99023426]
[1728617841514,3.5457,141.12,141.11,11.13868147]
[1728617842019,3.5457,141.12,141.11,11.13026932]
[1728617842623,3.5457,141.12,141.11,5.03236523]
[1728617843621,1.4289,141.16,141.11,13.76236523]
[1728617843823,6.3194,141.17,141.13,8.73]
[1728617844130,6.3194,141.17,141.12,12.7580699]
[1728617844131,8.73,141.16,141.12,8.73]
[1728617844523,8.73,141.16,141.13,4.90692561]
[1728617844524,3.5449,141.15,141.13,4.90692561]
[1728617844719,8.73,141.16,141.12,8.73]
[1728617844927,8.73,141.16,141.13,4.90669533]
[1728617845130,8.73,141.16,141.12,8.73]
[1728617845327,3.5449,141.15,141.13,4.90662369]
[1728617845634,8.73,141.16,141.12,8.73]
[1728617845831,8.73,141.16,141.13,4.90480402]
[1728617846031,3.5454,141.13,141.12,8.73]
[1728617846224,3.5454,141.13,141.12,21.48215259]
[1728617846425,3.5454,141.13,141.12,13.63467407]
[1728617848929,3.5454,141.13,141.12,8.73]
[1728617849135,3.5454,141.13,141.12,13.63452276]
[1728617852230,3.5454,141.13,141.12,8.73]
[1728617852431,3.5454,141.13,141.12,13.63398878]
[1728617853041,3.5454,141.13,141.12,18.53838749]
[1728617853235,3.5454,141.13,141.12,13.63439871]
[1728617853631,3.5448,141.16,141.12,17.17999871]
[1728617853827,1.3394,141.17,141.13,13.63439871]
[1728617854038,1.3394,141.17,141.13,8.73]
[1728617854339,3.5451,141.15,141.13,8.73]
[1728617854534,3.5451,141.15,141.14,4.90234616]
[1728617855741,3.5451,141.15,141.13,8.73]
[1728617856046,3.5451,141.15,141.14,4.90232605]
[1728617858440,3.5451,141.15,141.13,8.73]
[1728617859946,3.5451,141.15,141.14,4.90364749]
[1728617862745,3.5451,141.15,141.12,12.2756]
[1728617862949,3.5451,141.15,141.13,4.90407534]
[1728617863148,3.5451,141.15,141.14,4.90407534]
[1728617863550,3.5451,141.15,141.14,4.90399957]
[1728617866147,3.5451,141.15,141.13,8.73]
[1728617866543,3.5451,141.15,141.14,4.90301214]
[1728617867255,13.71,141.18,141.14,4.90301214]
[1728617867256,3.5449,141.16,141.14,4.90301214]
[1728617867552,13.71,141.18,141.13,8.73]
[1728617867753,3.5452,141.14,141.12,12.2756]
[1728617867951,3.5452,141.14,141.13,12.74721461]
[1728617869262,3.5452,141.14,141.13,4.90277485]
[1728617869753,3.5452,141.14,141.13,12.74868909]
[1728617873158,3.5452,141.14,141.12,8.73]
[1728617873658,3.5452,141.14,141.13,12.72647095]
[1728617876659,3.5452,141.14,141.12,8.73]
[1728617876853,3.5452,141.14,141.13,12.73210391]
[1728617880164,3.5452,141.14,141.13,7.83514087]
[1728617880358,3.5452,141.14,141.13,12.74787028]
[1728617882365,3.5452,141.14,141.12,8.73]
[1728617882566,3.5452,141.14,141.13,12.75033917]
[1728617885771,13.71,141.17,141.12,8.73]
[1728617886065,3.5454,141.13,141.12,8.73]
[1728617886563,3.5454,141.13,141.12,21.48407066]
[1728617888364,3.5454,141.13,141.12,12.75407066]
[1728617889366,8.73,141.16,141.11,0.12502]
[1728617889565,3.5457,141.12,141.11,0.12502]
[1728617890068,3.5457,141.12,141.11,12.88520185]
[1728617890367,3.5457,141.12,141.11,5.03278225]
[1728617896372,3.5457,141.12,141.11,0.12502]
[1728617896676,3.5457,141.12,141.11,5.03100584]
[1728617897777,3.5457,141.12,141.11,9.93672117]
[1728617899582,1.4123,141.15,141.11,18.66672117]
[1728617899875,1.4123,141.15,141.11,13.76100584]
[1728617900478,3.5454,141.14,141.11,13.76100584]
[1728617901479,3.5455,141.13,141.11,13.76100584]
[1728617902778,3.5455,141.13,141.11,5.03100584]
[1728617904788,3.5455,141.13,141.11,0.12502]
[1728617906787,3.5457,141.12,141.11,0.12502]
[1728617906985,3.5457,141.12,141.11,5.02685298]
[1728617909391,3.5456,141.13,141.11,5.02685298]
[1728617909589,13.71,141.16,141.11,0.12502]
[1728617909979,3.5454,141.14,141.11,0.12502]
[1728617910388,13.71,141.16,141.11,0.12502]
[1728617910589,3.5456,141.13,141.11,0.12502]
[1728617919906,3.5457,141.12,141.11,0.12502]
[1728617920108,3.5457,141.12,141.11,5.02527411]
[1728617923611,3.5457,141.12,141.11,5.02456971]
[1728617924810,1.3874,141.19,141.11,13.75456971]
[1728617925012,0.12502,141.23,141.16,8.73]
[1728617925013,8.73,141.21,141.16,8.73]
[1728617925214,3.5443,141.18,141.16,8.73]
[1728617925511,8.73,141.2,141.15,13.71]
[1728617926013,3.5447,141.16,141.15,4.98]
[1728617926907,3.5449,141.15,141.14,13.71]
[1728617927316,3.5449,141.15,141.14,4.98]
[1728617927812,3.5449,141.15,141.12,10.0325]
[1728617927813,8.73,141.17,141.12,1.3025]
[1728617928018,8.73,141.14,141.13,1.4346]
[1728617928220,8.73,141.14,141.11,5.10502]
[1728617928409,8.73,141.13,141.11,5.10502]
[1728617928908,3.5457,141.12,141.11,5.10502]
[1728617929109,3.5457,141.12,141.11,10.33528774]
[1728617929310,12.2757,141.12,141.11,10.33528774]
[1728617929906,12.2757,141.12,141.11,5.43521029]
[1728617930109,12.2757,141.12,141.11,10.33559635]
[1728617932616,12.2757,141.12,141.11,5.02540606]
[1728617932818,12.2757,141.12,141.11,10.29932776]
[1728617933009,3.5457,141.12,141.11,10.29932776]
[1728617933410,3.5457,141.12,141.11,5.02540606]
[1728617933606,3.5457,141.12,141.11,10.29947504]
[1728617934519,2.7075,141.2,141.11,19.02947504]
[1728617934721,8.73,141.17,141.13,8.73]
[1728617934913,3.5451,141.15,141.13,13.71]
[1728617935622,8.73,141.17,141.13,13.71]
[1728617935623,3.5452,141.14,141.13,13.71]
[1728617938023,3.5452,141.14,141.13,4.98]
[1728617942630,8.73,141.15,141.12,1.4343]
[1728617944426,3.5457,141.12,141.11,0.12502]
[1728617944626,3.5457,141.12,141.11,23.14708755]
[1728617944823,3.5457,141.12,141.11,15.29445396]
[1728617946229,3.5457,141.12,141.11,23.14914176]
[1728617946428,3.5457,141.12,141.11,31.00533053]
[1728617946626,3.5457,141.12,141.11,23.15064273]
[1728617946934,3.5457,141.12,141.11,31.88064273]
[1728617949931,3.5457,141.12,141.11,31.88427739]
[1728617953138,3.5457,141.12,141.11,26.59910476]
[1728617953337,3.5457,141.12,141.11,31.88649486]
[1728617956833,3.5457,141.12,141.11,31.904558]
[1728617960239,3.5457,141.12,141.11,26.62122393]
[1728617960445,3.5457,141.12,141.11,31.91348435]
[1728617963535,3.5457,141.12,141.11,21.70345319]
[1728617963737,3.5457,141.12,141.11,31.9136367]
[1728617963939,3.5457,141.12,141.11,24.04520351]
[1728617964248,3.5457,141.12,141.11,31.91375413]
[1728617967041,3.5457,141.12,141.11,13.83502]
[1728617967248,3.5457,141.12,141.11,31.91984104]
[1728617971152,3.5457,141.12,141.11,18.20984104]
[1728617973353,3.5457,141.12,141.11,18.21015232]
[1728617974453,3.5457,141.12,141.11,12.91572292]
[1728617974658,3.5457,141.12,141.11,18.21016458]
[1728617977563,3.5457,141.12,141.11,26.94016458]
[1728617980863,3.5457,141.12,141.11,14.14951891]
[1728617981164,3.5457,141.12,141.11,21.64663219]
[1728617981357,3.5457,141.12,141.11,39.7326485]
[1728617982363,3.5457,141.12,141.11,26.94110335]
[1728617982565,3.5457,141.12,141.11,39.73284041]
[1728617983266,4.98,141.19,141.11,39.73284041]
[1728617983467,8.73,141.16,141.12,18.08620822]
[1728617983663,8.73,141.16,141.13,10.21437003]
[1728617983857,8.73,141.16,141.11,21.64663219]
[1728617984063,8.73,141.16,141.12,18.08618599]
[1728617984368,8.73,141.16,141.13,5.29451736]
[1728617984557,3.5457,141.12,141.11,21.64663219]
[1728617984759,3.5457,141.12,141.11,39.73490946]
[1728617985160,3.5457,141.12,141.11,26.94329727]
[1728617987471,3.5457,141.12,141.11,31.92329727]
[1728617987672,3.5457,141.12,141.11,31.92346023]
[1728617989372,3.5457,141.12,141.11,23.19346023]
[1728617991272,3.5457,141.12,141.11,17.89816232]
[1728617991473,3.5457,141.12,141.11,28.11166084]
[1728617991679,3.5457,141.12,141.11,23.19122412]
[1728617994776,3.5457,141.12,141.11,17.89670166]
[1728617994967,3.5457,141.12,141.11,17.8979765]
[1728617995170,3.5457,141.12,141.11,23.17633053]
[1728617995875,3.5457,141.12,141.11,18.19633053]
[1728617998580,3.5457,141.12,141.11,5.40337403]
[1728617998780,3.5457,141.12,141.11,18.19772206]
[1728618001076,3.5457,141.12,141.11,7.99862168]
[1728618001278,3.5457,141.12,141.11,18.19865588]
[1728618005275,12.2757,141.12,141.11,18.19865588]
[1728618006776,12.2757,141.12,141.11,12.91962273]
[1728618007574,12.2757,141.12,141.11,7.99980978]
[1728618007786,12.2757,141.12,141.11,12.92155339]
[1728618009176,12.2757,141.12,141.11,5.04676361]
[1728618009382,12.2757,141.12,141.11,12.92066715]
[1728618009694,3.5457,141.12,141.11,12.92066715]
[1728618009882,3.5453,141.14,141.11,21.65066715]
[1728618010084,3.5453,141.14,141.13,8.73]
[1728618010380,3.5453,141.14,141.13,13.65174361]
[1728618010874,3.5453,141.14,141.13,8.73]
[1728618011178,3.5453,141.14,141.13,13.64980344]
[1728618012075,1.402,141.2,141.13,13.64980344]
[1728618012281,0.12502,141.23,141.18,8.73]
[1728618012579,0.12502,141.23,141.19,13.64508039]
[1728618012780,3.5433,141.22,141.19,8.73]
[1728618013084,3.5433,141.22,141.2,4.914069]
[1728618013381,3.5433,141.22,141.19,8.73]
[1728618013571,3.5433,141.22,141.2,11.10435706]
[1728618013774,3.5433,141.22,141.19,8.73]
[1728618013976,3.5433,141.22,141.2,16.55452962]
[1728618014277,3.5433,141.22,141.19,8.73]
[1728618014480,3.5433,141.22,141.2,5.44994841]
[1728618014680,3.5433,141.22,141.19,8.73]
[1728618014982,3.5433,141.22,141.2,5.44542559]
[1728618015172,3.5433,141.22,141.2,8.73]
[1728618015372,3.66802,141.23,141.21,5.4403823]
[1728618015578,3.66802,141.23,141.2,8.73]
[1728618015779,3.66802,141.23,141.21,5.44044355]
[1728618016072,3.66802,141.23,141.2,8.73]
[1728618016073,3.5432,141.22,141.2,8.73]
[1728618017081,3.5432,141.22,141.18,8.5242]
[1728618017282,3.5432,141.22,141.2,8.73]
[1728618018473,3.5434,141.21,141.18,4.98]
[1728618018778,3.5434,141.21,141.19,5.43489472]
[1728618018978,3.5434,141.21,141.19,8.73]
[1728618019378,3.5437,141.2,141.19,8.73]
[1728618019581,0.12502,141.23,141.19,14.16280065]
[1728618019791,0.12502,141.23,141.19,8.73]
[1728618019990,0.12502,141.23,141.19,13.71]
[1728618020287,3.5436,141.21,141.19,13.71]
[1728618023485,3.5436,141.21,141.2,8.73]
[1728618023690,3.5433,141.22,141.2,8.73]
[1728618028988,3.5434,141.21,141.2,8.73]
[1728618031695,3.5437,141.2,141.16,3.5445]
[1728618031900,3.5437,141.2,141.18,8.73]
[1728618033198,3.5437,141.2,141.19,8.73]
[1728618038303,3.5435,141.21,141.19,8.73]
[1728618038602,3.5435,141.21,141.2,13.69]
[1728618040998,0.12502,141.23,141.2,13.69]
[1728618041197,11.4603,141.31,141.22,8.73]
[1728618041501,15.03448171,141.31,141.27,8.73]
[1728618041803,11.4603,141.31,141.27,8.73]
[1728618042398,3.5417,141.28,141.27,8.73]
[1728618046005,3.66652,141.29,141.27,8.73]
[1728618046202,3.66652,141.29,141.28,8.73]
[1728618048409,3.66652,141.29,141.27,8.73]
[1728618048903,0.12502,141.29,141.27,8.73]
[1728618049109,3.5417,141.28,141.27,8.73]
[1728618050605,0.12502,141.29,141.27,8.73]
[1728618050807,3.66662,141.29,141.28,8.73]
[1728618057213,0.12502,141.29,141.28,8.73]
[1728618057518,0.12502,141.29,141.28,13.69]
[1728618059417,3.66642,141.29,141.28,4.96]
[1728618062116,0.12502,141.29,141.27,8.73]
[1728618062321,8.73,141.28,141.24,4.96]
[1728618063423,3.5426,141.25,141.24,4.96]
[1728618063617,3.5426,141.25,141.23,8.73]
[1728618063929,3.5427,141.24,141.23,8.73]
[1728618064819,3.5427,141.24,141.22,6.2572]
[1728618065018,3.5427,141.24,141.23,8.73]
[1728618066418,3.5431,141.23,141.22,8.73]
[1728618067628,3.5431,141.23,141.21,4.96]
[1728618067923,3.5431,141.23,141.22,8.73]
[1728618075430,3.5431,141.23,141.21,4.96]
[1728618075634,8.73,141.27,141.21,4.96]
[1728618075835,3.5432,141.22,141.21,4.96]
[1728618076026,3.5432,141.22,141.21,13.69]
[1728618076830,3.543,141.23,141.21,13.69]
[1728618081339,3.543,141.23,141.21,17.2334]
[1728618083041,3.543,141.23,141.22,5.43513378]
[1728618085147,3.543,141.23,141.21,17.2334]
[1728618085449,3.543,141.23,141.22,5.43578033]
[1728618087545,3.5421,141.27,141.22,8.97888033]
[1728618087747,2.7683,141.28,141.24,8.73]
[1728618088139,3.5426,141.25,141.24,8.73]
[1728618100654,0.12502,141.29,141.24,19.0916274]
[1728618100851,0.12502,141.29,141.27,8.73]
[1728618101051,3.66652,141.29,141.27,8.73]
[1728618101651,3.66652,141.29,141.26,8.73]
[1728618102350,0.12502,141.29,141.26,8.73]
[1728618102551,3.5417,141.28,141.26,8.73]
[1728618103253,3.66652,141.29,141.26,8.73]
[1728618103460,0.12502,141.29,141.28,8.73]
[1728618107859,0.12502,141.29,141.28,12.2717]
[1728618108361,3.5405,141.33,141.29,3.5412]
[1728618108657,0.12502,141.35,141.31,8.73]
[1728618108855,0.12502,141.35,141.3,4.96]
[1728618109061,0.12502,141.35,141.31,8.73]
[1728618110159,3.5402,141.34,141.31,8.73]
[1728618111758,3.5402,141.34,141.32,8.73]
[1728618113262,3.5402,141.34,141.31,8.73]
[1728618113465,0.12502,141.35,141.31,8.73]
[1728618113661,3.5405,141.33,141.31,8.73]
[1728618114757,3.5405,141.33,141.32,8.73]
[1728618118969,0.12502,141.35,141.32,8.73]
[1728618119170,3.5403,141.34,141.32,8.73]
[1728618120173,3.5404,141.33,141.32,8.73]
[1728618120471,3.5404,141.33,141.31,8.73]
[1728618121970,3.5404,141.33,141.32,8.73]
[1728618122566,3.5404,141.33,141.3,8.5012]
[1728618122766,3.5404,141.33,141.32,8.73]
[1728618126882,0.12502,141.35,141.3,4.96]
[1728618127080,3.5409,141.32,141.31,8.73]
[1728618127276,0.12502,141.35,141.31,8.73]
[1728618128079,3.5405,141.33,141.32,8.73]
[1728618129577,0.12502,141.35,141.32,8.73]
[1728618129782,3.5404,141.34,141.32,8.73]
[1728618130679,3.5404,141.33,141.32,8.73]
[1728618131784,3.5402,141.34,141.32,8.73]
[1728618131988,0.12502,141.35,141.32,8.73]
[1728618133484,3.5404,141.33,141.32,8.73]
[1728618137783,3.5404,141.34,141.32,8.73]
[1728618137980,0.12502,141.35,141.32,8.73]
[1728618138484,3.5404,141.33,141.32,8.73]
[1728618140183,0.12502,141.35,141.28,1.3243]
[1728618140184,0.12502,141.35,141.3,13.71]
[1728618140375,3.5409,141.31,141.3,13.71]
[1728618140774,3.5409,141.31,141.3,8.73]
[1728618142787,3.5408,141.32,141.3,8.73]
[1728618142980,3.5408,141.32,141.31,8.73]
[1728618148292,8.73,141.33,141.23,0.12502]
[1728618148484,8.73,141.32,141.27,8.73]
[1728618149387,3.5418,141.28,141.27,8.73]
[1728618151088,3.542,141.27,141.25,8.73]
[1728618154784,12.21395441,141.3,141.25,8.73]
[1728618154988,8.73,141.29,141.24,8.73]
[1728618155183,8.73,141.29,141.23,10.23662]
[1728618155591,3.5426,141.25,141.23,10.23662]
[1728618156192,3.5427,141.24,141.23,0.12502]
[1728618157898,12.2727,141.24,141.23,0.12502]
[1728618160193,3.5427,141.24,141.23,0.12502]
[1728618169604,12.2727,141.24,141.23,0.12502]
[1728618169793,8.73,141.24,141.18,1.3865]
[1728618169994,3.57544723,141.27,141.17,5.08502]
[1728618169995,3.5439,141.2,141.17,0.12502]
[1728618170190,8.73,141.21,141.17,0.12502]
[1728618170394,3.5437,141.2,141.17,0.12502]
[1728618171293,3.5439,141.19,141.17,0.12502]
[1728618171893,3.5439,141.19,141.18,8.73]
[1728618172088,3.5439,141.19,141.17,8.85502]
[1728618174290,3.5439,141.19,141.17,0.12502]
[1728618176302,3.5442,141.18,141.17,0.12502]
[1728618187606,12.2742,141.18,141.17,0.12502]
[1728618197028,3.5442,141.18,141.17,0.12502]
[1728618197219,12.2742,141.18,141.17,0.12502]
[1728618201717,12.2742,141.18,141.12,12.2755]
[1728618201718,3.5454,141.14,141.11,3.67092]
[1728618201920,8.73,141.14,141.11,0.12502]
[1728618202826,8.73,141.12,141.11,0.12502]
[1728618203625,12.2757,141.12,141.11,0.12502]
[1728618204326,3.5457,141.12,141.11,0.12502]
[1728618207921,12.2757,141.12,141.11,0.12502]
[1728618211623,12.2768,141.08,141.06,1.4097]
[1728618213929,3.5468,141.08,141.06,1.4097]
[1728618214132,8.73,141.09,141.06,1.4097]
[1728618214339,4.96,141.11,141.06,1.4097]
[1728618214534,8.73,141.1,141.06,1.4097]
[1728618216236,3.5467,141.08,141.06,1.4097]
[1728618219141,8.73,141.1,141.05,0.12502]
[1728618219340,3.5469,141.07,141.05,0.12502]
[1728618226350,3.5472,141.06,141.05,0.12502]
[1728618226845,12.2772,141.06,141.05,0.12502]
[1728618233138,3.5472,141.06,141.05,0.12502]
[1728618233448,12.2772,141.06,141.05,0.12502]
[1728618245057,3.5472,141.06,141.05,0.12502]
[1728618245257,12.2772,141.06,141.05,0.12502]
[1728618245859,3.5472,141.06,141.05,0.12502]
[1728618246062,12.2772,141.06,141.05,0.12502]
[1728618249257,3.5472,141.06,141.05,0.12502]
[1728618249658,12.2772,141.06,141.05,0.12502]
[1728618256862,3.5472,141.06,141.05,0.12502]
[1728618257065,12.2772,141.06,141.05,0.12502]
[1728618263365,3.5472,141.06,141.05,0.12502]
[1728618263565,12.2772,141.06,141.05,0.12502]
[1728618268369,12.2772,141.06,141.05,5.02508743]
[1728618273768,12.2772,141.06,141.05,0.12502]
[1728618273968,12.2772,141.06,141.05,5.03174312]
[1728618274369,3.5472,141.06,141.05,5.03174312]
[1728618274775,12.2772,141.06,141.05,5.03174312]
[1728618275378,12.2772,141.06,141.05,12.88501519]
[1728618275578,12.2772,141.06,141.05,0.12502]